Cogmind - Beta 16 @@@ ROGUE MODE // 2025.11.16 @ 12:04:26 Player: C0-2MO Result: Escaped! Performance ------------- Evolutions (9) 4500 Regions Visited (14) 2800 Robots Destroyed (6) 30 Value Destroyed (250) 250 Prototype IDs (7) 140 Alien Tech Used (1) 200 Bonus (27825) 27825 TOTAL SCORE: 35745 Bonus ------- Entered DSFs 500 Win 3000 Win Speed 24325 Cogmind --------- Core Integrity 1461/1600 Matter 166/300 Energy 9/100 System Corruption 1% Temperature Cool (4) Movement Flying (37) Location To Epsilon Eridani Parts ------- > --- POWER (2) -------- Matter Drive > --- PROPULSION (10) -- Impulse Thruster Field Propulsion Array > --- UTILITY (9) ------ Advanced Heat Sink Active Sensor Suite Experimental Targeting Computer Improved Utility Shielding System Shield > --- WEAPON (4) ------- (None) > --- INVENTORY (5) ---- Micro Antimatter Reactor Micro Antimatter Reactor Nova Cannon Enhanced Coil Gun Enhanced Coil Gun Peak State ------------ > --- POWER ------------ Light Nuclear Core Micro Antimatter Reactor > --- PROPULSION ------- Field Propulsion Drive Field Propulsion Drive Nuclear Pulse Array Impulse Thruster Impulse Thruster Field Propulsion Array > --- UTILITY ---------- Advanced Heat Sink Active Sensor Suite Experimental Targeting Computer Advanced Cloaking Device Improved Utility Shielding Improved Utility Shielding System Shield > --- WEAPON ----------- Nova Cannon Enhanced Coil Gun Enhanced Coil Gun Power Maul > --- INVENTORY -------- Micro Antimatter Reactor Matter Drive [Rating: 147] Favorites ----------- Power Light Nuclear Core Engine Improved Ion Engine Power Core Light Nuclear Core Reactor Micro Antimatter Reactor Propulsion Improved Flight Unit Leg Aluminum Leg Flight Unit Improved Flight Unit Utility System Shield Device Advanced Heat Sink Processor Experimental Targeting Computer Hackware System Shield Protection Improved Utility Shielding Weapon Assault Rifle Energy Gun Heavy Laser Energy Cannon Nova Cannon Ballistic Gun Assault Rifle Impact Weapon Power Maul Build | -11 -10 -9 -8 -8 -8 -6 -5 -4 -4 -3 -3 -2 -2 -1 ------- Run | Yrd Mat Mat Mat Sto Rec Fac Fac Fac DSF Res Qua Res Tes Acc Slots Evolved 18 | . . 2 2 . . 4 2 2 . 2 . 2 . 2 Power 1 | . . . . . . 1 . . . . . . . . Propulsion 8 | . . 2 . . . 2 1 . . . . 1 . 2 Utility 7 | . . . . . . 1 1 2 . 2 . 1 . . Weapon 2 | . . . 2 . . . . . . . . . . . Parts Attached 50 | 2 4 8 5 2 . 3 6 . 2 2 2 3 7 4 Power 6 | . . 1 1 . . . 1 . . . 1 . 1 1 Engine 1 | . . 1 . . . . . . . . . . . . Core 3 | . . . 1 . . . 1 . . . 1 . . . Reactor 2 | . . . . . . . . . . . . . 1 1 Propulsion 23 | . 4 6 . 1 . 2 1 . . 1 1 3 3 1 Treads . | . . . . . . . . . . . . . . . Leg 2 | . 2 . . . . . . . . . . . . . Wheel . | . . . . . . . . . . . . . . . Hover . | . . . . . . . . . . . . . . . Flight 21 | . 2 6 . 1 . 2 1 . . 1 1 3 3 1 Utility 12 | . . 1 1 . . 1 4 . 2 1 . . 2 . Device 3 | . . . . . . . 1 . . 1 . . 1 . Storage . | . . . . . . . . . . . . . . . Processor 1 | . . . . . . . . . . . . . 1 . Hackware 3 | . . . 1 . . . 2 . . . . . . . Protection 5 | . . 1 . . . 1 1 . 2 . . . . . Artifact . | . . . . . . . . . . . . . . . Weapon 9 | 2 . . 3 1 . . . . . . . . 1 2 Energy Gun 2 | 1 . . 1 . . . . . . . . . . . Energy Cannon 1 | . . . . . . . . . . . . . 1 . Ballistic Gun 5 | 1 . . 2 . . . . . . . . . . 2 Ballistic Cannon . | . . . . . . . . . . . . . . . Launcher . | . . . . . . . . . . . . . . . Special Weapon . | . . . . . . . . . . . . . . . Impact Weapon 1 | . . . . 1 . . . . . . . . . . Slashing Weapon . | . . . . . . . . . . . . . . . Piercing Weapon . | . . . . . . . . . . . . . . . Special Melee Weapon . | . . . . . . . . . . . . . . . Unidentified Prototypes 5 | . . 1 . . . . . . . 1 . . 1 2 Parts Lost 24 | . . 1 . . . . . . 4 3 4 2 2 8 Power 3 | . . . . . . . . . . 1 . . 1 1 Propulsion 12 | . . 1 . . . . . . 1 1 2 1 1 5 Utility 4 | . . . . . . . . . 1 1 1 . . 1 Weapon 5 | . . . . . . . . . 2 . 1 1 . 1 Highest Loss Streak 7 | . . 1 . . . . . . 4 3 4 2 4 7 To Critical Strikes . | . . . . . . . . . . . . . . . Average Backups 3 | . 1 3 4 5 5 3 3 3 3 2 4 5 2 2 Power . | . . . . . . . . 1 1 1 . 1 . 1 Propulsion . | . . 1 2 3 3 1 . . . . 1 1 . . Utility . | . . . . . . . . . . . 1 1 . . Weapon 1 | . 1 2 2 2 2 2 2 2 2 . 1 1 . . Tool/Special . | . . . . . . . . . . . . . . . Unused Backups 2 | . . . . . . . . . 1 . . . . 1 Power 1 | . . . . . . . . . . . . . . 1 Propulsion . | . . . . . . . . . . . . . . . Utility . | . . . . . . . . . . . . . . . Weapon 1 | . . . . . . . . . 1 . . . . . Tool/Special . | . . . . . . . . . . . . . . . Average Slot Usage (%) 74 | . 46 72 86 100 100 86 95 94 88 78 70 54 59 61 Core 5 | . . . 3 9 9 6 10 10 10 9 8 8 5 2 Flight 28 | . 8 38 36 36 36 38 39 36 33 30 25 19 21 19 Device 4 | . . . . . . . 1 5 5 8 9 8 10 11 Hackware 5 | . . . 3 9 9 6 9 10 10 9 7 4 4 4 Protection 7 | . . 8 9 9 9 7 9 10 12 8 4 4 6 6 Energy Gun 4 | . 14 11 9 4 . . . . 5 4 4 4 . . Ballistic Gun 10 | . 14 11 19 27 27 20 17 15 10 4 2 . . 2 Impact Weapon 2 | . . . . 4 9 6 5 5 . 1 4 4 4 2 Peak Build Rating 147 | 2 4 20 29 29 29 39 54 58 61 93 96 110 132 147 Average Rating 60 | 1 3 13 26 29 29 35 50 58 56 85 92 97 112 122 On Entrance 47 | . 2 4 20 29 29 29 39 54 58 58 80 84 98 132 Avg Prop Armor Cover (%) 5 | . 21 1 . . . . . . . . . . . . Naked Turns . | . . . . . . . . . . . . . . . Heaviest Build 48 | 3 3 14 20 18 17 24 29 28 31 32 25 24 38 48 Greatest Support 58 | 3 8 20 20 20 20 30 35 35 35 38 44 58 58 58 Greatest Overweight (x) . | . . . . . . . . . . . . . . . Average Overweight (x) . | . . . . . . . . . . . . . . . Largest Inventory Capacity 5 | 5 5 5 5 5 5 5 5 5 5 5 5 5 5 5 Average Capacity 5 | 5 5 5 5 5 5 5 5 5 5 5 5 5 5 5 Most Carried 5 | 1 3 5 5 5 5 4 4 3 5 5 5 5 5 5 Average Carried 3 | . 1 4 4 5 5 3 3 3 3 3 4 5 2 2 Final Capacity 5 | 5 5 5 5 5 5 5 5 5 5 5 5 5 5 5 Final Carried 5 | 1 3 5 5 5 5 3 4 3 5 5 5 5 1 5 Class Distribution -------------------- 25% | Sprinter 21% | Mutant 12% | Hacker-Sprinter 12% | Scientist-Scout 9% | Scientist-Ninja 8% | Hacker-Scout 6% | Ninja 4% | Scout Dominant Class ---------------- Mutant | -10/Materials Mutant | -9/Materials Sprinter | -8/Materials Sprinter | -8/Storage Sprinter | -8/Recycling Sprinter | -6/Factory Sprinter | -5/Factory Sprinter | -4/Factory Hacker-Sprinter | -4/DSF Hacker-Scout | -3/Research Scientist-Scout | -3/Quarantine Scientist-Scout | -2/Research Scientist-Ninja | -2/Testing Ninja | -1/Access Resources | -11 -10 -9 -8 -8 -8 -6 -5 -4 -4 -3 -3 -2 -2 -1 ----------- Run | Yrd Mat Mat Mat Sto Rec Fac Fac Fac DSF Res Qua Res Tes Acc Matter Collected 608 | 144 93 93 . . . . . . 221 57 . . . . Remotely . | . . . . . . . . . . . . . . . Salvage Created 230 | . 39 93 . . . . . . 98 . . . . . Parts 20 | . 6 6 . . . . . . 8 . . . . . Haulers Intercepted . | . . . . . . . . . . . . . . . Recyclers Shooed . | . . . . . . . . . . . . . . . Parts Field Recycled . | . . . . . . . . . . . . . . . Retrieved Matter . | . . . . . . . . . . . . . . . Parts Self-Destructed . | . . . . . . . . . . . . . . . Prevented . | . . . . . . . . . . . . . . . Parts Restored . | . . . . . . . . . . . . . . . Kills | -11 -10 -9 -8 -8 -8 -6 -5 -4 -4 -3 -3 -2 -2 -1 ------- Run | Yrd Mat Mat Mat Sto Rec Fac Fac Fac DSF Res Qua Res Tes Acc Combat Hostiles Destroyed 6 | . 3 2 . . . . . . 1 . . . . . Guns 6 | . 3 2 . . . . . . 1 . . . . . Classes Destroyed 4 | . 1 2 . . . . . . 1 . . . . . Swarmer 3 | . 3 . . . . . . . . . . . . . Grunt 1 | . . 1 . . . . . . . . . . . . Sentry 1 | . . 1 . . . . . . . . . . . . Heavy 1 | . . . . . . . . . 1 . . . . . Best Kill Streak 3 | . 3 2 . . . . . . 1 . . . . . Combat Bots Only 3 | . 3 2 . . . . . . 1 . . . . . Max Kills in Single Turn 1 | . 1 1 . . . . . . 1 . . . . . Gunslinging . | . . . . . . . . . . . . . . . Exploded . | . . . . . . . . . . . . . . . Melee . | . . . . . . . . . . . . . . . Uniques/NPCs Destroyed . | . . . . . . . . . . . . . . . Combat | -11 -10 -9 -8 -8 -8 -6 -5 -4 -4 -3 -3 -2 -2 -1 -------- Run | Yrd Mat Mat Mat Sto Rec Fac Fac Fac DSF Res Qua Res Tes Acc Hostile Shots Fired 350 | . 12 30 5 53 4 . 4 . 33 35 36 18 32 88 Missed 202 | . 5 14 1 31 2 . 2 . 20 23 18 10 25 51 Hits 148 | . 7 16 4 22 2 . 2 . 13 12 18 8 7 37 Projectile 148 | . 7 16 4 22 2 . 2 . 13 12 18 8 7 37 AOE 1 | . . . . . . . . . . . . . 1 . Critical Strikes 7 | . . . . . . . 1 . . . 1 . . 5 Actively Blocked 3 | . . . . . . . 1 . . . 1 . . 1 Part Disruptions 1 | . . . . . . . . . . . . . 1 . Actively Blocked 1 | . . . . . . . . . . . . . 1 . Damage Taken 3166 | . 68 196 54 272 31 . 53 . 515 347 340 171 259 860 Core 442 | . 39 . 14 34 . . . . 67 80 . 66 3 139 Absorbed by Shields 32 | . . . . 32 . . . . . . . . . . Redirected to Shielding 298 | . . . . . . . 34 . 97 8 22 . 53 84 Ignored by Resistances 60 | . . 16 4 38 2 . . . . . . . . . Regen/Repaired (Parts) 270 | . . . . 25 . . . . . 137 24 . . 84 Core Remaining (%) 94 | 100 84 100 . . 91 100 100 . 94 . 93 . 95 91 Volleys Fired 26 | . 4 7 . . . . . . 9 . . . . 6 Largest 4 | . 2 2 . . . . . . 4 . . . . 1 Hottest 129 | . 60 60 . . . . . . 129 . . . . 113 Shots Fired 53 | . 8 14 . . . . . . 25 . . . . 6 Gun 47 | . 8 14 . . . . . . 25 . . . . . Cannon 6 | . . . . . . . . . . . . . . 6 Launcher . | . . . . . . . . . . . . . . . Special . | . . . . . . . . . . . . . . . Kinetic 27 | . 4 7 . . . . . . 16 . . . . . Thermal 26 | . 4 7 . . . . . . 9 . . . . 6 Explosive . | . . . . . . . . . . . . . . . Electromagnetic . | . . . . . . . . . . . . . . . Robot Hit Streak 6 | . 3 6 . . . . . . 6 . . . . . Robot Miss Streak 2 | . 1 2 . . . . . . 2 . . . . . Penetration Max . | . . . . . . . . . . . . . . . Secondary Targets 1 | . . . . . . . . . 1 . . . . . Max Gunslinging Chain 1 | . . . . . . . . . 1 . . . . . Shots Hit Robots 32 | . 5 8 . . . . . . 19 . . . . . Core Hits 14 | . 3 5 . . . . . . 6 . . . . . Critical Kills . | . . . . . . . . . . . . . . . Critical Parts Destroyed . | . . . . . . . . . . . . . . . Critical Strikes . | . . . . . . . . . . . . . . . Melee Attacks 7 | . . . . 1 . . . . . 1 4 . . 1 Impact 7 | . . . . 1 . . . . . 1 4 . . 1 Slashing . | . . . . . . . . . . . . . . . Piercing . | . . . . . . . . . . . . . . . Sneak Attacks . | . . . . . . . . . . . . . . . Combat Hostiles . | . . . . . . . . . . . . . . . Follow-up Attacks . | . . . . . . . . . . . . . . . Damage Inflicted 443 | . 55 93 . . . . . . 295 . . . . . Guns 443 | . 55 93 . . . . . . 295 . . . . . Cannons . | . . . . . . . . . . . . . . . Explosions . | . . . . . . . . . . . . . . . Melee . | . . . . . . . . . . . . . . . Ramming . | . . . . . . . . . . . . . . . Kinetic 227 | . 33 49 . . . . . . 145 . . . . . Thermal 216 | . 22 44 . . . . . . 150 . . . . . Explosive . | . . . . . . . . . . . . . . . Electromagnetic . | . . . . . . . . . . . . . . . Impact . | . . . . . . . . . . . . . . . Slashing . | . . . . . . . . . . . . . . . Piercing . | . . . . . . . . . . . . . . . Highest Corruption 3 | . . . . . . . . . . 2 2 . 3 1 Average Corruption 1 | . . . . . . . . . . 2 2 . 2 1 Corruption Purged . | . . . . . . . . . . . . . . . Corruption Blocked . | . . . . . . . . . . . . . . . Effects 6 | . . . . . . . . . . 1 1 . 1 3 Matter Fused 2 | . . . . . . . . . . . . . . 2 Energy Discharges 2 | . . . . . . . . . . 1 . . 1 . Parts Rejected 1 | . . . . . . . . . . . . . . 1 Parts Fused 1 | . . . . . . . . . . . 1 . . . Overload Shots . | . . . . . . . . . . . . . . . Overflow Damage . | . . . . . . . . . . . . . . . Projectiles . | . . . . . . . . . . . . . . . Explosions . | . . . . . . . . . . . . . . . Melee . | . . . . . . . . . . . . . . . Knockbacks . | . . . . . . . . . . . . . . . Impact . | . . . . . . . . . . . . . . . Kinetic . | . . . . . . . . . . . . . . . Secondary . | . . . . . . . . . . . . . . . Self-Inflicted Damage . | . . . . . . . . . . . . . . . Shots . | . . . . . . . . . . . . . . . Rammed . | . . . . . . . . . . . . . . . Targets Rammed . | . . . . . . . . . . . . . . . Kicked . | . . . . . . . . . . . . . . . Crushed . | . . . . . . . . . . . . . . . Highest Temperature 290 | . 15 7 13 16 4 65 290 . 3 17 . . . 56 Average Temperature 56 | . 10 2 7 6 3 36 124 . 3 10 . . . 26 Received Heat Transfer 396 | . 18 72 18 144 9 . . . . 21 51 9 . 54 Siege Activations . | . . . . . . . . . . . . . . . Martial Activations . | . . . . . . . . . . . . . . . Shielding Activations . | . . . . . . . . . . . . . . . Robots Disrupted . | . . . . . . . . . . . . . . . Combat Hostiles . | . . . . . . . . . . . . . . . Robots Corrupted . | . . . . . . . . . . . . . . . Combat Hostiles . | . . . . . . . . . . . . . . . Parts Fried . | . . . . . . . . . . . . . . . Impact Corruptions . | . . . . . . . . . . . . . . . Robots Melted . | . . . . . . . . . . . . . . . Combat Hostiles . | . . . . . . . . . . . . . . . Parts Melted . | . . . . . . . . . . . . . . . Heat Transferred 446 | . 50 100 . . . . . . 296 . . . . . Parts Sabotaged . | . . . . . . . . . . . . . . . Parts Stolen . | . . . . . . . . . . . . . . . Parts Stripped . | . . . . . . . . . . . . . . . Power Chain Reactions . | . . . . . . . . . . . . . . . Alert | -11 -10 -9 -8 -8 -8 -6 -5 -4 -4 -3 -3 -2 -2 -1 ------- Run | Yrd Mat Mat Mat Sto Rec Fac Fac Fac DSF Res Qua Res Tes Acc Maximum Alert Level 2 | . . . . . . . . . . . 1 . . 2 Low Security (%) 87 | 100 100 100 100 100 100 100 100 100 100 100 79 100 100 36 Level 1 10 | . . . . . . . . . . . 20 . . 52 Level 2 1 | . . . . . . . . . . . . . . 10 Level 3 . | . . . . . . . . . . . . . . . Level 4 . | . . . . . . . . . . . . . . . Level 5 . | . . . . . . . . . . . . . . . High Security . | . . . . . . . . . . . . . . . Max Security . | . . . . . . . . . . . . . . . Peak Influence 497 | . 75 70 22 85 41 22 27 12 20 162 281 146 134 497 Initial 146 | . . 31 22 4 33 8 5 12 8 11 85 146 59 74 Average 77 | . 35 30 17 14 32 14 5 12 6 52 134 136 66 234 Influence Increases 1515 | . 94 101 . 105 8 14 27 . 20 192 246 . 115 593 Destroy 0b10 Robot/C 120 | . 60 40 . . . . . . 20 . . . . . Destroy Leader 20 | . 10 10 . . . . . . . . . . . . Successful Hack 114 | . 23 6 . . 8 14 12 . . . 24 . . 27 Disable Machine 105 | . . . . 15 . . . . . . 45 . . 45 Destroy Structure 26 | . 1 . . . . . . . . 2 2 . . 21 Partial Spotted 90 | . . 15 . 30 . . 15 . . . 15 . 15 . Lose Combat Pursuer 540 | . . 30 . 60 . . . . . 90 60 . . 300 Active Sensor Use 500 | . . . . . . . . . . 100 100 . 100 200 Influence Decreases 1018 | . 20 120 43 32 72 23 12 15 12 60 137 155 97 220 Entered New Map 463 | . . 43 33 8 52 13 7 15 4 9 67 115 47 50 Time Decay 350 | . 20 70 10 24 20 10 5 . . 21 30 20 30 90 Lost Part 205 | . . 7 . . . . . . 8 30 40 20 20 80 Squads Dispatched 15 | . 2 1 . 1 . . . . 1 3 2 . 1 4 Investigation 11 | . 1 . . 1 . . . . . 3 2 . 1 3 Extermination 1 | . . . . . . . . . . . . . . 1 Reinforcement 3 | . 1 1 . . . . . . 1 . . . . . Assault . | . . . . . . . . . . . . . . . Garrison . | . . . . . . . . . . . . . . . Intercept . | . . . . . . . . . . . . . . . Searches Triggered . | . . . . . . . . . . . . . . . Construction Impeded . | . . . . . . . . . . . . . . . Haulers Reinforced . | . . . . . . . . . . . . . . . Active Scanning Responses 5 | . . . . . . . . . . 1 1 . 1 2 Cargo Convoy Interrupts . | . . . . . . . . . . . . . . . Stealth | -11 -10 -9 -8 -8 -8 -6 -5 -4 -4 -3 -3 -2 -2 -1 --------- Run | Yrd Mat Mat Mat Sto Rec Fac Fac Fac DSF Res Qua Res Tes Acc Distress Signals 5 | . 1 . . . . . . . . 1 . . . 3 Communications Jammed . | . . . . . . . . . . . . . . . Distress Signals . | . . . . . . . . . . . . . . . Times Spotted 139 | . 11 9 3 13 1 4 2 . 3 20 20 7 8 38 Peak Tracking Total 25 | . 7 4 6 11 1 3 2 . 3 17 16 7 7 25 Tactical Retreats 12 | . . 1 . 1 . . . . . 2 1 . . 7 Traps | -11 -10 -9 -8 -8 -8 -6 -5 -4 -4 -3 -3 -2 -2 -1 ------- Run | Yrd Mat Mat Mat Sto Rec Fac Fac Fac DSF Res Qua Res Tes Acc Traps Triggered 5 | . . . . 2 . . . . . 1 . 1 . 1 Indirectly . | . . . . . . . . . . . . . . . Trap Hack Attempts . | . . . . . . . . . . . . . . . Triggered . | . . . . . . . . . . . . . . . Disarmed . | . . . . . . . . . . . . . . . Reprogrammed . | . . . . . . . . . . . . . . . Reused . | . . . . . . . . . . . . . . . Traps Extracted . | . . . . . . . . . . . . . . . Installed . | . . . . . . . . . . . . . . . Triggered . | . . . . . . . . . . . . . . . Machines | -11 -10 -9 -8 -8 -8 -6 -5 -4 -4 -3 -3 -2 -2 -1 ---------- Run | Yrd Mat Mat Mat Sto Rec Fac Fac Fac DSF Res Qua Res Tes Acc Machines Disabled 7 | . . . . 1 . . . . . . 3 . . 3 Max in Single Turn 1 | . . . . 1 . . . . . . 1 . . 1 Energy Cycler 1 | . . . . . . . . . . . . . . 1 Machines Repaired . | . . . . . . . . . . . . . . . Machines Dismantled . | . . . . . . . . . . . . . . . Machines Sabotaged . | . . . . . . . . . . . . . . . Overloaded Fab Kills . | . . . . . . . . . . . . . . . Hacking | -11 -10 -9 -8 -8 -8 -6 -5 -4 -4 -3 -3 -2 -2 -1 --------- Run | Yrd Mat Mat Mat Sto Rec Fac Fac Fac DSF Res Qua Res Tes Acc Machines Accessed 21 | . 3 2 . 3 1 1 1 1 . 2 3 1 1 2 Terminals 13 | . 3 1 . 2 1 1 1 1 . . 1 1 . 1 Fabricators . | . . . . . . . . . . . . . . . Repair Stations 6 | . . . . 1 . . . . . 2 1 . 1 1 Recycling Units . | . . . . . . . . . . . . . . . Scanalyzers 2 | . . 1 . . . . . . . . 1 . . . Garrison Access . | . . . . . . . . . . . . . . . Total Hacks 62 | . 6 9 . 6 4 8 5 1 . 5 13 1 1 3 Successful 34 | . 4 5 . 4 2 3 2 1 . 2 9 . . 2 Failed 28 | . 2 4 . 2 2 5 3 . . 3 4 1 1 1 Catastrophic 5 | . 1 . . 1 . . 1 . . . . 1 1 . Database Lockouts . | . . . . . . . . . . . . . . . Manual 42 | . 6 5 . 6 2 8 3 . . 5 3 1 1 2 Terminals 41 | . 6 5 . 4 4 8 5 1 . . 5 1 . 2 Fabricators . | . . . . . . . . . . . . . . . Repair Stations 11 | . . . . 2 . . . . . 5 2 . 1 1 Recycling Units . | . . . . . . . . . . . . . . . Scanalyzers 10 | . . 4 . . . . . . . . 6 . . . Garrison Access . | . . . . . . . . . . . . . . . Terminal Hacks 11 | . 2 1 . 2 1 1 1 1 . . 1 . . 1 Prototype ID Bank 1 | . . . . . . . . . . . 1 . . . Open Door 1 | . . . . 1 . . . . . . . . . . Open DSF 1 | . . . . . . . . 1 . . . . . . Level Access Points 3 | . . . . . 1 1 . . . . . . . 1 Branch Access Points 1 | . . . . 1 . . . . . . . . . . Zone Layout 4 | . 2 1 . . . . 1 . . . . . . . Fabricator Hacks . | . . . . . . . . . . . . . . . Repair Station Hacks . | . . . . . . . . . . . . . . . Recycling Unit Hacks . | . . . . . . . . . . . . . . . Scanalyzer 9 | . . 3 . . . . . . . . 6 . . . Retrieve Study 9 | . . 3 . . . . . . . . 6 . . . Garrison Access Hacks . | . . . . . . . . . . . . . . . Unauthorized Hacks 14 | . 2 1 . 2 1 2 1 . . 2 2 . . 1 Terminals 9 | . 2 1 . 1 1 2 1 . . . 1 . . . Assimilate 1 | . . . . . . 1 . . . . . . . . Botnet 7 | . 2 1 . 1 . 1 1 . . . 1 . . . Skim 1 | . . . . . 1 . . . . . . . . . Fabricators . | . . . . . . . . . . . . . . . Repair Stations 5 | . . . . 1 . . . . . 2 1 . . 1 Patch 5 | . . . . 1 . . . . . 2 1 . . 1 Recycling Units . | . . . . . . . . . . . . . . . Scanalyzers . | . . . . . . . . . . . . . . . Garrison Access . | . . . . . . . . . . . . . . . Data Cores Recovered . | . . . . . . . . . . . . . . . Used . | . . . . . . . . . . . . . . . Hacking Detections 15 | . 2 2 . 2 . 1 1 . . 2 2 1 1 1 Full Trace Events 2 | . 1 1 . . . . . . . . . . . . Feedback Events . | . . . . . . . . . . . . . . . Feedback Blocked . | . . . . . . . . . . . . . . . Robot Schematics Acquired . | . . . . . . . . . . . . . . . Robots Built . | . . . . . . . . . . . . . . . Authchips . | . . . . . . . . . . . . . . . Time . | . . . . . . . . . . . . . . . Total Robot Build Rating . | . . . . . . . . . . . . . . . Part Schematics Acquired . | . . . . . . . . . . . . . . . Parts Built . | . . . . . . . . . . . . . . . Authchips . | . . . . . . . . . . . . . . . Time . | . . . . . . . . . . . . . . . Total Part Build Rating . | . . . . . . . . . . . . . . . Part Studies Acquired 9 | . . 3 . . . . . . . . 6 . . . Parts Repaired . | . . . . . . . . . . . . . . . Time . | . . . . . . . . . . . . . . . Parts Recycled . | . . . . . . . . . . . . . . . Recycled Matter . | . . . . . . . . . . . . . . . Retrieved Matter . | . . . . . . . . . . . . . . . Retrieved Components . | . . . . . . . . . . . . . . . Parts Scanalyzed . | . . . . . . . . . . . . . . . Part Schematics Acquired . | . . . . . . . . . . . . . . . Parts Damaged . | . . . . . . . . . . . . . . . Bothacking | -11 -10 -9 -8 -8 -8 -6 -5 -4 -4 -3 -3 -2 -2 -1 ------------ Run | Yrd Mat Mat Mat Sto Rec Fac Fac Fac DSF Res Qua Res Tes Acc Used RIF Installer . | . . . . . . . . . . . . . . . Robots Hacked . | . . . . . . . . . . . . . . . Non-combat . | . . . . . . . . . . . . . . . Combat . | . . . . . . . . . . . . . . . Robot Hacks Applied . | . . . . . . . . . . . . . . . Relay Couplers Released . | . . . . . . . . . . . . . . . Fabnet Peak Effective % . | . . . . . . . . . . . . . . . Robots Rewired . | . . . . . . . . . . . . . . . Allies Hacked . | . . . . . . . . . . . . . . . Hacks Repelled . | . . . . . . . . . . . . . . . Allies | -11 -10 -9 -8 -8 -8 -6 -5 -4 -4 -3 -3 -2 -2 -1 -------- Run | Yrd Mat Mat Mat Sto Rec Fac Fac Fac DSF Res Qua Res Tes Acc Total Allies 1 | . . . . . . 1 . . . . . . . . Largest Group 1 | . . . . . . 1 . . . . . . . . Highest-Rated Group 10 | . . . . . . 10 . . . . . . . . Highest-Rated Ally 10 | . . . . . . 10 . . . . . . . . Total Orders . | . . . . . . . . . . . . . . . Ally Attacks . | . . . . . . . . . . . . . . . Total Damage . | . . . . . . . . . . . . . . . Kills . | . . . . . . . . . . . . . . . Allies Corrupted . | . . . . . . . . . . . . . . . Allies Melted . | . . . . . . . . . . . . . . . Intel | -11 -10 -9 -8 -8 -8 -6 -5 -4 -4 -3 -3 -2 -2 -1 ------- Run | Yrd Mat Mat Mat Sto Rec Fac Fac Fac DSF Res Qua Res Tes Acc Active Infowar (turns) 429 | . . . . . . . . . . 77 64 43 60 185 A.S.S. 429 | . . . . . . . . . . 77 64 43 60 185 Cloaking 49 | . . . . . . . . . . . . . 2 47 Robot Analysis Total . | . . . . . . . . . . . . . . . Derelict Logs Recovered . | . . . . . . . . . . . . . . . Drone Launches . | . . . . . . . . . . . . . . . Drone Recoveries . | . . . . . . . . . . . . . . . Exploration | -11 -10 -9 -8 -8 -8 -6 -5 -4 -4 -3 -3 -2 -2 -1 ------------- Run | Yrd Mat Mat Mat Sto Rec Fac Fac Fac DSF Res Qua Res Tes Acc Turns Passed 1022 | 15 73 167 37 93 51 33 59 6 57 78 64 43 60 186 Spaces Moved 2730 | 22 118 402 85 201 163 99 219 21 101 280 181 129 178 531 Core 74 | 22 52 . . . . . . . . . . . . . Treads . | . . . . . . . . . . . . . . . Legs . | . . . . . . . . . . . . . . . Wheels . | . . . . . . . . . . . . . . . Hover . | . . . . . . . . . . . . . . . Flight 2656 | . 66 402 85 201 163 99 219 21 101 280 181 129 178 531 Fastest Speed 21 | 50 37 31 31 31 31 24 21 21 21 22 25 25 25 26 Average Speed 28 | 50 42 32 31 31 31 24 21 21 22 23 25 28 28 29 Slowest Speed 50 | 50 50 34 31 31 31 24 24 21 25 25 31 31 31 37 Overloaded Moves . | . . . . . . . . . . . . . . . Propulsion Burnouts . | . . . . . . . . . . . . . . . Robots Hopped 72 | . 9 6 1 8 4 1 3 . . 10 6 . 6 18 Potential Cave-ins 2 | . . . . . . . . . . . . . . 2 Cave-ins Triggered . | . . . . . . . . . . . . . . . Exploration Rate (%) 26 | 3 44 40 14 43 50 5 11 1 78 14 39 7 29 23 Regions Visited 14 Branch Regions 4 Pre-discovered Areas . | . . . . . . . . . . . . . . . Known Exits Taken 6 | . . . . 1 1 1 . 1 . . 1 1 . . Unknown Exits Taken 7 | 1 1 1 1 . . . 1 . . 1 . . 1 . Scrap Searched . | . . . . . . . . . . . . . . . Spaces Dug 4 | . . . . . . . . . . 1 1 . . 2 Terrain Destroyed 7 | . . . . . . . . . . 1 1 . . 5 Melee 3 | . . . . . . . . . . 1 1 . . 1 Projectile 1 | . . . . . . . . . . . . . . 1 AOE 3 | . . . . . . . . . . . . . . 3 Terrain Rammed . | . . . . . . . . . . . . . . . Walls Destroyed . | . . . . . . . . . . . . . . . Machines Disabled . | . . . . . . . . . . . . . . . Actions | -11 -10 -9 -8 -8 -8 -6 -5 -4 -4 -3 -3 -2 -2 -1 --------- Run | Yrd Mat Mat Mat Sto Rec Fac Fac Fac DSF Res Qua Res Tes Acc Total 2808 | 24 121 416 92 220 158 105 225 21 115 279 184 135 179 534 Wait 13 | . 1 . 1 . . 5 1 . . 2 . . . 3 Move 2580 | 21 100 389 82 184 154 96 212 20 100 260 170 128 167 497 Hop 63 | . 8 6 1 8 4 1 3 . . 9 4 . 4 15 Pick Up 19 | 1 2 3 2 . . . 1 . 2 3 3 1 . 1 Fast Attach 29 | 2 4 4 2 . . 1 4 . 1 1 . 3 3 4 Attach 17 | . . 1 2 . . 2 1 1 1 2 2 . 4 1 Detach 5 | . . . . . . . 1 . . . . . . 4 Swap 11 | . . 3 1 2 . . 1 . 1 . . 1 1 1 Drop 14 | . 2 3 1 1 . . 1 . 1 1 1 2 . 1 Fire 26 | . 4 7 . . . . . . 9 . . . . 6 Melee 7 | . . . . 1 . . . . . 1 4 . . 1 Ram . | . . . . . . . . . . . . . . . Kick . | . . . . . . . . . . . . . . . Crush . | . . . . . . . . . . . . . . . Escape Stasis 24 | . . . . 24 . . . . . . . . . . Rewire . | . . . . . . . . . . . . . . . Trap . | . . . . . . . . . . . . . . . Miscellaneous . | . . . . . . . . . . . . . . . Route ------- -11/Scrapyard -10/Materials (discovered 2 exits: *Mat / [*Min]) -9/Materials (discovered 2 exits: [*Mat] / [*Min]) -8/Materials -8/Storage -8/Recycling -6/Factory (discovered 4 exits: *Fac x4) -5/Factory -4/Factory -4/DSF -3/Research -3/Quarantine -2/Research -2/Testing -1/Access To Epsilon Eridani History --------- Turn | Location | Event 8 | -11/Scrapyard | Discovered new exit (range 15) 16 | -11/Scrapyard | Entered Materials 39 | -10/Materials | Discovered new exit (range 6) 80 | -10/Materials | Discovered new exit (range 14) 89 | -10/Materials | Entered another Materials area 89 | -9/Materials | Evolved 2 slots: Propulsion x2 114 | -9/Materials | Discovered new exit (range 7) 254 | -9/Materials | Discovered new exit (range 9) 256 | -9/Materials | Entered another Materials area 256 | -8/Materials | Evolved 2 slots: Weapon x2 286 | -8/Materials | Discovered new exit (range 15) 293 | -8/Materials | Entered Storage 371 | -8/Storage | Identified exit to Recycling 384 | -8/Storage | Used back door to open Recycling access 386 | -8/Storage | Entered Recycling 387 | -8/Recycling | Identified exit to Factory 437 | -8/Recycling | Entered Factory 437 | -6/Factory | Evolved 4 slots: Power x1, Propulsion x2, Utility x1 447 | -6/Factory | Identified exit to Factory 470 | -6/Factory | Entered another Factory area 470 | -5/Factory | Evolved 2 slots: Propulsion x1, Utility x1 502 | -5/Factory | Spotted B-75 Beast 526 | -5/Factory | Discovered new exit (range 11) 529 | -5/Factory | Entered another Factory area 529 | -4/Factory | Evolved 2 slots: Utility x2 534 | -4/Factory | Identified exit to DSF 535 | -4/Factory | Entered DSF 570 | -4/DSF | Additional patrols routed to DSF 584 | -4/DSF | Found Prototype Device 588 | -4/DSF | Discovered new exit (range 14) 592 | -4/DSF | Entered Research 592 | -3/Research | Evolved 2 slots: Utility x2 593 | -3/Research | Identified Active Sensor Suite 599 | -3/Research | Lost 4 parts (1n1u2w) 664 | -3/Research | Discovered new exit (range 16) 670 | -3/Research | Entered Quarantine 684 | -3/Quarantine | Found Alien Reactor 701 | -3/Quarantine | Lost 3 parts (1p1n1u) 720 | -3/Quarantine | Cryocooling Duct disabled 724 | -3/Quarantine | Cryocooling Duct disabled 731 | -3/Quarantine | Discovered new exit (range 14) 734 | -3/Quarantine | Identified exit to Research 734 | -3/Quarantine | Entered Research 734 | -2/Research | Evolved 2 slots: Propulsion x1, Utility x1 758 | -2/Research | Spotted B-90 Cyclops 763 | -2/Research | Lost 4 parts (2n1u1w) 774 | -2/Research | Discovered new exit (range 10) 777 | -2/Research | Identified exit to Testing 777 | -2/Research | Entered Testing 810 | -2/Testing | Found Prototype Processor 810 | -2/Testing | Identified Exp. Targeting Computer 821 | -2/Testing | Lost 4 parts (1p2n1w) 830 | -2/Testing | Discovered new exit (range 14) 837 | -2/Testing | Entered Access 837 | -1/Access | Evolved 2 slots: Propulsion x2 845 | -1/Access | Energy Cycler disabled 905 | -1/Access | Identified exit to Surface 957 | -1/Access | Spotted B-99 Colossus 1011 | -1/Access | Identified Matter Drive 1023 | *** | Escaped! Last Messages --------------- 00960_ Slug penetrates Wall. 00961_ Penetrated by Slug. 00961_ Slug penetrates Fabricator. 00963_ Slug penetrates Wall. 00963_ Penetrated by Slug. 00963_ Slug penetrates Wall. 00964_ Penetrated by Slug. 00964_ Lgt. Nuclear Core+ destroyed. 00965_ Imp. Utility Shielding destroyed. 00969_ Field Propulsion Drive destroyed. 00969_ Slug penetrates Wall. 00988_ Field Propulsion Drive destroyed. 00989_ ALERT: Active scanning activity reported from Zone 6E, dispatching Investigation squad. 00992_ Impulse Thruster destroyed. 00999_ Field Propulsion Drive destroyed. 00999_ Critical hit (Burn: +37). 01011_ Identified Matter Drive. 01013_ Dropped Adv. Cloaking Device. 01020_ Main Access Shell breached. Map ----- +----------------------------------------------------+ | ?????????????????????????????????????????????????? | | ?????????????????????????????????????????????????? | | ?????????????????????????????????????????????????? | | ?????????????????????????????????????????????????? | | ?????????????????????????????????????????????????? | | ?????????????????????????????????????????????????? | | ?????????????????????????????????????????????????? | | ?????????????????????????????????????????????????? | | ???? #??????????????????????????????????????????? | | ??? #??????????????????????????????????????????? | | ??? ???????????????????????????????????????????? | | ?? ?###+###########????????????????????????????? | | ? ??# #????????????????????????????? | | ???# #????????????????????????????? | | ????# #????????????????????????????? | | ?????# #????????????????????????????? | | ####### ##???????????????????????????? | | + !"#???????????????????????????? | | ##################"""##??????????????????????????? | | #????????????????# #????????#?????????????????? | | #????????????????##""######### #######???????????? | | #?????????????????""" #????????? | | #???????????????????" #????????? | | #???????????????????" """ "" #????????? | | ??????????????????" " "???? #????????? | | ?????????????????" " "@ "???????? ?????????? | | ????????????????" " "" "?????????????????????? | | ???????????????" " "?????????????????????? | | #####???????????????" """"""?????????????????????? | | ????????????????????" ??????????????????????????? | | ????????????????????? ??????????????????????????? | | ?????????????????????##??????????????????????????? | | ?????????????????????????????????????????????????? | | ?????????????????????????????????????????????????? | | ?????????????????????????????????????????????????? | | ?????????????????????????????????????????????????? | | ?????????????????????????????????????????????????? | | ?????????????????????????????????????????????????? | | ?????????????????????????????????????????????????? | | ?????????????????????????????????????????????????? | | ?????????????????????????????????????????????????? | | ?????????????????????????????????????????????????? | | ?????????????????????????????????????????????????? | | ?????????????????????????????????????????????????? | | ?????????????????????????????????????????????????? | | ?????????????????????????????????????????????????? | | ?????????????????????????????????????????????????? | | ?????????????????????????????????????????????????? | | ?????????????????????????????????????????????????? | | ?????????????????????????????????????????????????? | +----------------------------------------------------+ Best States ------------- Heat Dissipation 71 Energy Generation 29 Energy Capacity 265 Matter Stores 300 Matter Capacity 300 Sight Range 16 Robot Scan Range 20 Terrain Scan Density 10 Cloak Strength 4 Armor Coverage 375 Resistance: TH 10 Propulsion Shielding 66 Utility Shielding 66 Evasion (%) 65 Targeting Accuracy 12 Offensive Hacking 12 Defensive Hacking 10 Item Schematics ----------------- None Robot Schematics ------------------ None Fabricated ------------ Nothing Repaired ---------- Nothing Studied --------- Flight Unit | -9/Materials | Hacked Assault Rifle | -9/Materials | Hacked Lgt. Assault Rifle | -9/Materials | Hacked Nuclear Pulse Array | -3/Quarantine | Hacked Mic. Fission Core | -3/Quarantine | Hacked Lgt. Nuclear Core | -3/Quarantine | Hacked Q-thruster | -3/Quarantine | Hacked Nova Cannon | -3/Quarantine | Hacked Power Maul | -3/Quarantine | Hacked Alien Tech Used ----------------- Matter Drive Achievements -------------- None Challenges ------------ None Game ------ Seed ZhirovInsulatedPurifier Manual? 0 Play Time 00:32:46 Cumulative 664.9 hours Start 2025.11.16 @ 11:32:40 End 2025.11.16 @ 12:04:26 Sessions 1 Manual Loads 0 Difficulty Rogue Special Mode None Game No. 286 Rogue 286 Adventurer 0 Explorer 0 Win Type 0 Total 64 Types 33/4/10/4/6/1/0/3/0/3 Lore% 96 Gallery% 89 Achievement% 78 Wizard Run 0 Options --------- Layout 1 ASCII 0 Keyboard 0 Movement Numpad Keybinds 0 Fullscreen 1 Font 24/Smallcaps Map View 50x35 Zoom Use 0% Tactical HUD 1 Map Filters NONE Filters NONE Steam 1 RUN: fe1f6c15-a338-4792-8983-53f51583d13f